Cogmind - Beta 16 @@@ ROGUE MODE // 2026.01.23 @ 13:27:56 Player: delto Result: Destroyed by G-34 Mercenary with Small Laser Performance ------------- Evolutions (0) 0 Regions Visited (1) 200 Robots Destroyed (4) 20 Value Destroyed (34) 34 Prototype IDs (0) 0 Alien Tech Used (0) 0 Bonus (0) 0 TOTAL SCORE: 254 Bonus ------- None Cogmind --------- Core Integrity 0/250 Matter 255/300 Energy 54/125 System Corruption 0% Temperature Warm (137) Movement Flying (120) Ox1 Location -10/Materials Parts ------- > --- POWER (1) -------- Light Ion Engine > --- PROPULSION (2) --- Flight Unit > --- UTILITY (2) ------ Improved Terrain Scanner Seismic Detector > --- WEAPON (2) ------- Small Laser > --- INVENTORY (5) ---- Medium Matter Pod (0) Structural Scanner Peak State ------------ > --- POWER ------------ Light Ion Engine > --- PROPULSION ------- Aluminum Leg Aluminum Leg > --- UTILITY ---------- Improved Terrain Scanner Seismic Detector > --- WEAPON ----------- Medium Laser Medium Laser > --- INVENTORY -------- Light Treads Compact Wheel Small Laser [Rating: 9] Favorites ----------- Power Light Ion Engine Engine Light Ion Engine Propulsion Aluminum Leg Leg Aluminum Leg Flight Unit Flight Unit Utility Improved Terrain Scanner Device Improved Terrain Scanner Storage Small Storage Unit Weapon Medium Laser Energy Gun Medium Laser Special Weapon Mining Laser Build | -11 -10 ------- Run | Yrd Mat Slots Evolved . | . . Power . | . . Propulsion . | . . Utility . | . . Weapon . | . . Parts Attached 14 | 7 7 Power 3 | 1 2 Engine 3 | 1 2 Core . | . . Reactor . | . . Propulsion 4 | 2 2 Treads . | . . Leg 2 | 2 . Wheel . | . . Hover . | . . Flight 2 | . 2 Utility 3 | 2 1 Device 2 | 2 . Storage 1 | . 1 Processor . | . . Hackware . | . . Protection . | . . Artifact . | . . Weapon 4 | 2 2 Energy Gun 3 | 2 1 Energy Cannon . | . . Ballistic Gun . | . . Ballistic Cannon . | . . Launcher . | . . Special Weapon 1 | . 1 Impact Weapon . | . . Slashing Weapon . | . . Piercing Weapon . | . . Special Melee Weapon . | . . Unidentified Prototypes . | . . Parts Lost 7 | . 7 Power 2 | . 2 Propulsion 2 | . 2 Utility . | . . Weapon 3 | . 3 Highest Loss Streak 7 | . 7 To Critical Strikes . | . . Average Backups 4 | 2 5 Power . | . 1 Propulsion 1 | 1 . Utility 1 | . 1 Weapon 1 | . 1 Tool/Special . | . . Unused Backups 4 | . 4 Power . | . . Propulsion 2 | . 2 Utility 2 | . 2 Weapon . | . . Tool/Special . | . . Average Slot Usage (%) 97 | . 97 Engine 14 | . 14 Leg 24 | . 24 Flight 1 | . 1 Device 19 | . 19 Storage 8 | . 8 Energy Gun 26 | . 26 Special Weapon 1 | . 1 Peak Build Rating 9 | 9 9 Average Rating 7 | 5 8 On Entrance 4 | . 9 Avg Prop Armor Cover (%) . | . . Naked Turns . | . . Heaviest Build 15 | 9 15 Greatest Support 20 | 20 20 Greatest Overweight (x) 1 | . 1 Average Overweight (x) . | . . Largest Inventory Capacity 8 | 5 8 Average Capacity 6 | 5 6 Most Carried 7 | 5 7 Average Carried 4 | 2 5 Final Capacity 5 | 5 5 Final Carried 5 | 5 2 Class Distribution -------------------- 100% | Mutant Dominant Class ---------------- Mutant | -10/Materials Resources | -11 -10 ----------- Run | Yrd Mat Matter Collected 270 | 257 13 Remotely . | . . Salvage Created 56 | 44 12 Parts 9 | 6 3 Haulers Intercepted . | . . Recyclers Shooed . | . . Parts Field Recycled . | . . Retrieved Matter . | . . Parts Self-Destructed . | . . Prevented . | . . Parts Restored . | . . Kills | -11 -10 ------- Run | Yrd Mat Combat Hostiles Destroyed 2 | . 2 Guns 1 | . 1 Cannons 1 | . 1 Classes Destroyed 2 | 1 1 Tunneler 2 | 2 . Swarmer 2 | . 2 Best Kill Streak 2 | 1 2 Combat Bots Only 2 | . 2 Max Kills in Single Turn 1 | 1 1 Gunslinging . | . . Exploded . | . . Melee . | . . Uniques/NPCs Destroyed . | . . Combat | -11 -10 -------- Run | Yrd Mat Hostile Shots Fired 129 | . 129 Missed 26 | . 26 Hits 103 | . 103 Projectile 103 | . 103 Critical Strikes 4 | . 4 Damage Taken 877 | . 877 Core 257 | . 257 Absorbed by Shields . | . . Core Remaining (%) 100 | 100 . Volleys Fired 15 | 3 12 Largest 2 | 2 2 Hottest 140 | 100 140 Shots Fired 28 | 6 22 Gun 25 | 6 19 Cannon . | . . Launcher . | . . Special 3 | . 3 Kinetic . | . . Thermal 28 | 6 22 Explosive . | . . Electromagnetic . | . . Robot Hit Streak 3 | 2 3 Robot Miss Streak 5 | 1 5 Penetration Max . | . . Secondary Targets . | . . Shots Hit Robots 11 | 3 8 Core Hits 4 | 2 2 Critical Kills . | . . Critical Parts Destroyed . | . . Critical Strikes . | . . Melee Attacks . | . . Impact . | . . Slashing . | . . Piercing . | . . Sneak Attacks . | . . Combat Hostiles . | . . Follow-up Attacks . | . . Damage Inflicted 156 | 37 119 Guns 122 | 37 85 Cannons . | . . Explosions . | . . Melee . | . . Ramming 10 | . 10 Kinetic . | . . Thermal 146 | 37 109 Explosive . | . . Electromagnetic . | . . Impact . | . . Slashing . | . . Piercing . | . . Highest Corruption . | . . Average Corruption . | . . Corruption Purged . | . . Corruption Blocked . | . . Overload Shots . | . . Overflow Damage . | . . Projectiles . | . . Explosions . | . . Melee . | . . Knockbacks . | . . Impact . | . . Kinetic . | . . Secondary . | . . Self-Inflicted Damage . | . . Shots . | . . Rammed . | . . Targets Rammed 3 | . 3 Kicked 3 | . 3 Crushed . | . . Highest Temperature 300 | 78 300 Average Temperature 110 | 33 130 Received Heat Transfer 102 | . 102 Effects 1 | . 1 Energy Bleed 1 | . 1 Siege Activations . | . . Martial Activations . | . . Shielding Activations . | . . Robots Disrupted . | . . Combat Hostiles . | . . Robots Corrupted . | . . Combat Hostiles . | . . Parts Fried . | . . Impact Corruptions . | . . Robots Melted . | . . Combat Hostiles . | . . Parts Melted 1 | 1 . Heat Transferred 396 | 111 285 Parts Sabotaged . | . . Parts Stolen . | . . Parts Stripped . | . . Power Chain Reactions . | . . Alert | -11 -10 ------- Run | Yrd Mat Maximum Alert Level . | . . Low Security (%) 100 | 100 100 Level 1 . | . . Level 2 . | . . Level 3 . | . . Level 4 . | . . Level 5 . | . . High Security . | . . Max Security . | . . Peak Influence 40 | 5 40 Initial . | . . Average 4 | . 5 Influence Increases 111 | 10 101 Destroy 0b10 Robot/C 40 | . 40 Destroy 0b10 Robot/NC 10 | 10 . Destroy Structure 1 | . 1 Lose Combat Pursuer 60 | . 60 Influence Decreases 100 | 10 90 Time Decay 30 | 10 20 Lost Part 70 | . 70 Squads Dispatched 1 | . 1 Investigation . | . . Extermination . | . . Reinforcement 1 | . 1 Assault . | . . Garrison . | . . Intercept . | . . Searches Triggered . | . . Construction Impeded . | . . Haulers Reinforced . | . . Active Scanning Responses . | . . Cargo Convoy Interrupts . | . . Stealth | -11 -10 --------- Run | Yrd Mat Distress Signals 2 | . 2 Communications Jammed . | . . Distress Signals . | . . Times Spotted 12 | . 12 Peak Tracking Total 9 | . 9 Tactical Retreats 2 | . 2 Traps | -11 -10 ------- Run | Yrd Mat Traps Triggered . | . . Indirectly . | . . Trap Hack Attempts . | . . Triggered . | . . Disarmed . | . . Reprogrammed . | . . Reused . | . . Traps Extracted . | . . Installed . | . . Triggered . | . . Machines | -11 -10 ---------- Run | Yrd Mat Machines Disabled . | . . Max in Single Turn . | . . Machines Repaired . | . . Machines Dismantled . | . . Machines Sabotaged . | . . Overloaded Fab Kills . | . . Hacking | -11 -10 --------- Run | Yrd Mat Machines Accessed . | . . Terminals . | . . Fabricators . | . . Repair Stations . | . . Recycling Units . | . . Scanalyzers . | . . Garrison Access . | . . Total Hacks . | . . Successful . | . . Failed . | . . Catastrophic . | . . Database Lockouts . | . . Manual . | . . Terminals . | . . Fabricators . | . . Repair Stations . | . . Recycling Units . | . . Scanalyzers . | . . Garrison Access . | . . Terminal Hacks . | . . Fabricator Hacks . | . . Repair Station Hacks . | . . Recycling Unit Hacks . | . . Scanalyzer . | . . Garrison Access Hacks . | . . Unauthorized Hacks . | . . Terminals . | . . Fabricators . | . . Repair Stations . | . . Recycling Units . | . . Scanalyzers . | . . Garrison Access . | . . Data Cores Recovered . | . . Used . | . . Hacking Detections . | . . Full Trace Events . | . . Feedback Events . | . . Feedback Blocked . | . . Robot Schematics Acquired . | . . Robots Built . | . . Authchips . | . . Time . | . . Total Robot Build Rating . | . . Part Schematics Acquired . | . . Parts Built . | . . Authchips . | . . Time . | . . Total Part Build Rating . | . . Part Studies Acquired . | . . Parts Repaired . | . . Time . | . . Parts Recycled . | . . Recycled Matter . | . . Retrieved Matter . | . . Retrieved Components . | . . Parts Scanalyzed . | . . Part Schematics Acquired . | . . Parts Damaged . | . . Bothacking | -11 -10 ------------ Run | Yrd Mat Used RIF Installer . | . . Robots Hacked . | . . Non-combat . | . . Combat . | . . Robot Hacks Applied . | . . Relay Couplers Released . | . . Fabnet Peak Effective % . | . . Robots Rewired . | . . Allies Hacked . | . . Hacks Repelled . | . . Allies | -11 -10 -------- Run | Yrd Mat Total Allies . | . . Largest Group . | . . Highest-Rated Group . | . . Highest-Rated Ally . | . . Total Orders . | . . Ally Attacks . | . . Total Damage . | . . Kills . | . . Allies Corrupted . | . . Allies Melted . | . . Intel | -11 -10 ------- Run | Yrd Mat Active Infowar (turns) 327 | 54 273 Terrain 297 | 24 273 Seismic 147 | 54 93 Robot Analysis Total . | . . Derelict Logs Recovered . | . . Drone Launches . | . . Drone Recoveries . | . . Exploration | -11 -10 ------------- Run | Yrd Mat Turns Passed 399 | 126 273 Spaces Moved 267 | 88 179 Core 5 | 5 . Treads . | . . Legs 257 | 83 174 Wheels . | . . Hover . | . . Flight 5 | . 5 Fastest Speed 37 | 50 37 Average Speed 117 | 116 118 Slowest Speed 190 | 120 190 Overloaded Moves . | . . Propulsion Burnouts . | . . Robots Hopped . | . . Potential Cave-ins . | . . Cave-ins Triggered . | . . Exploration Rate (%) 14 | 5 23 Regions Visited 1 Branch Regions . Pre-discovered Areas . | . . Known Exits Taken . | . . Unknown Exits Taken 1 | 1 . Scrap Searched . | . . Spaces Dug . | . . Terrain Destroyed 1 | . 1 Melee . | . . Projectile 1 | . 1 AOE . | . . Terrain Rammed . | . . Walls Destroyed . | . . Machines Disabled . | . . Actions | -11 -10 --------- Run | Yrd Mat Total 314 | 102 212 Wait . | . . Move 266 | 87 179 Hop . | . . Pick Up 8 | 5 3 Fast Attach 10 | 7 3 Attach 5 | . 5 Detach 1 | . 1 Swap 1 | . 1 Drop 5 | . 5 Fire 15 | 3 12 Melee . | . . Ram . | . . Kick 3 | . 3 Crush . | . . Escape Stasis . | . . Rewire . | . . Trap . | . . Miscellaneous . | . . Route ------- -11/Scrapyard -10/Materials History --------- Turn | Location | Event 7 | -11/Scrapyard | Discovered new exit (range 15) 127 | -11/Scrapyard | Entered Materials 314 | -10/Materials | Build established: Mutant 366 | -10/Materials | Core integrity fell below 50% 394 | -10/Materials | Core integrity fell below 20% 400 | -10/Materials | Destroyed by G-34 Mercenary with Small Laser Last Messages --------------- 00361_ Med. Laser destroyed. 00362_ Kicked S-10 Pest. 00364_ S-10 Pest destroyed. 00364_ Acquired 13 matter. 00366_ Aluminum Leg destroyed. 00366_ Med. Laser destroyed. 00370_ S-10 Pest destroyed. 00374_ K-01 Serf collects debris. 00378_ Acquired Flight Unit. 00379_ K-01 Serf collects debris. 00379_ Dropped Sml. Storage Unit. 00380_ K-01 Serf collects debris. 00381_ Acquired Flight Unit. 00383_ Dropped Aluminum Leg. 00383_ K-01 Serf collects debris. 00390_ Lgt. Ion Engine destroyed. 00391_ ALERT: Hostiles spotted, dispatching reinforcements to Terminal M007. 00392_ Mining Laser destroyed. 00395_ Flight Unit destroyed. Map ----- +----------------------------------------------------+ | ????????????????????????????????????#????????????? | | ???????????????????????#??????????? #????????????? | | ??????????????????????#?######??#?? ######???????? | | ???????????????????????##!!!!##??? ?? ?????? | | ????????????????#??????# !#?? ??????????? | | ????????????????# ???# #?# ########? ? ?? | | ????????????????# ## ## # #?????? | | ????????????????# # """ ####### | | ??????????? T # "Y" ## | | ??????????? # ## """ | | ???????????? #######+## # ## """ | | ????????????## #???# ####### ## """ | | ?????????????# ????# #???#?# ## | | ?????????????# ?????# #????## ## | | ?????????????# ?????# #?#??####+######+## | | ?????????????? ## ??????# #??#?# | | ?????????????? ?? ?????"?# = ###### | | ??????????????????????"??# *+%* | | ????????????????#?? ????####/#########+##### ### | | ?????????????? ????????????# #??# =# # | | ???????????????????????????# #??# """ """ # # | | ??????????????????? ???????#!#?## """ """ =# + | | ?????????????????? ????????#=##?# """ """ # # " | | ???????????????????????##### #### """ """ # # " | | ?????????? ###u#ssg ## # # " | | ?????????? u ms@ ############# # " | | ?????????? u #??# ? ? ??# # " | | ?????????? !]] g + [ ???# ### | | ???????????!] """ """ #### ??# #?? | | ???????????!] """ """ #??# # #?? | | ?????????????????""" """ #### + #?? | | ?????????????????""" """ #??# # #?? | | ????????????????? ?? w / #####?? | | ?????????????????? ??? ##### ???????? | | ?????????????????#?????######+#???# ?????##? | | ???????????????????????????? ???#######????????? | | ????????????????????????????? "?????#??#????????#? | | ?????????????????? ?????????? ""?????????????????? | | ????????????????????????????? T??????????????????? | | ????????????????????????????????????????????????? | | ?????????????????????????????????????????????????? | | ?????????????????????????????????????????????????? | | ?????????????????????????????????????????????????? | | ?????????????????????????????????????????????????? | | ?????????????????????????????????????????????????? | | ?????????????????????????????????????????????????? | | ?????????????????????????????????????????????????? | | ?????????????????????????????????????????????????? | | ?????????????????????????????????????????????????? | | ?????????????????????????????????????????????????? | +----------------------------------------------------+ Best States ------------- Heat Dissipation 25 Energy Generation 10 Energy Capacity 250 Matter Stores 287 Matter Capacity 300 Sight Range 16 Terrain Scan Range 16 Terrain Scan Density 10 Evasion (%) 55 Item Schematics ----------------- None Robot Schematics ------------------ None Fabricated ------------ Nothing Repaired ---------- Nothing Studied --------- None Alien Tech Used ----------------- None Achievements -------------- None Challenges ------------ None Game ------ Seed TerrabombNeutrinoStripper Manual? 0 Play Time 00:05:47 Cumulative 97.7 hours Start 2026.01.23 @ 13:24:40 End 2026.01.23 @ 13:27:56 Sessions 1 Manual Loads 0 Difficulty Rogue Special Mode None Game No. 125 Rogue 125 Adventurer 0 Explorer 0 Win Type - Total 1 Types 1/0/0/0/0/0/0/0/0/0 Lore% 24 Gallery% 43 Achievement% 29 Wizard Run 0 Options --------- Layout 0 ASCII 0 Keyboard 0 Movement Mouse Keybinds 0 Fullscreen 1 Font 24/Smallcaps Map View 76x50 Zoom Use 0% Tactical HUD 1 Map Filters NONE Filters NONE Steam 1 RUN: b4163b5a-6792-4f1a-bb80-1131d9b6df82